Cogmind - Beta 15 @@@ ROGUE MODE // 2025.06.30 @ 20:41:25 Player: Zaros426 Result: Destroyed by O2-7Y9(R) with Subdweller Machine Gun Performance ------------- Evolutions (0) 0 Regions Visited (3) 600 Robots Destroyed (66) 330 Value Destroyed (1085) 1085 Prototype IDs (3) 60 Alien Tech Used (0) 0 Bonus (0) 0 TOTAL SCORE: 2075 Bonus ------- None Cogmind --------- Core Integrity 0/250 Matter 228/300 Energy 200/200 System Corruption 0% Temperature Cool (0) Movement Core (600) Ox11 Location -10/Subcaves Parts ------- > --- POWER (1) -------- Subdweller Power Source > --- PROPULSION (2) --- Subdweller Monowheel > --- UTILITY (2) ------ Large Storage Unit Seismic Detector > --- WEAPON (2) ------- Subdweller Machine Gun Subdweller Machine Gun > --- INVENTORY (15) --- High-capacity Storage Unit Huge Storage Unit Structural Scanner ECM Suite Scrap Shield Bomb Drone Bay (16/16) Subdweller Laser Rocket Launcher Datajack Makeshift Hammer Shrapnel Trap Scrap Shield Fragment (47) Peak State ------------ > --- POWER ------------ (None) > --- PROPULSION ------- Subdweller Monowheel > --- UTILITY ---------- Bomb Drone Bay > --- WEAPON ----------- Subdweller Laser Subdweller Laser > --- INVENTORY -------- Scrap Shield Shrapnel Trap [Rating: 20] Favorites ----------- Power Ion Engine Engine Ion Engine Propulsion Light Treads Treads Light Treads Wheel Subdweller Monowheel Utility Seismic Detector Device Seismic Detector Storage High-capacity Storage Unit Protection Scrap Shield Weapon Beam Cannon Energy Gun Subdweller Laser Energy Cannon Beam Cannon Ballistic Gun Subdweller Machine Gun Ballistic Cannon Light Cannon Launcher Grenade Launcher Special Weapon Mining Laser Impact Weapon Makeshift Hammer Build | -11 -10 -10 -10 ------- Run | Yrd Mat Min Sub Slots Evolved . | . . . . Power . | . . . . Propulsion . | . . . . Utility . | . . . . Weapon . | . . . . Parts Attached 39 | 6 13 5 15 Power 5 | . 1 1 3 Engine 5 | . 1 1 3 Core . | . . . . Reactor . | . . . . Propulsion 5 | 2 . 2 1 Treads 4 | 2 . 2 . Leg . | . . . . Wheel 1 | . . . 1 Hover . | . . . . Flight . | . . . . Utility 11 | 2 3 2 4 Device 7 | 2 1 1 3 Storage 3 | . 2 1 . Processor . | . . . . Hackware . | . . . . Protection 1 | . . . 1 Artifact . | . . . . Weapon 18 | 2 9 . 7 Energy Gun 4 | 1 1 . 2 Energy Cannon 2 | . 2 . . Ballistic Gun 3 | 1 . . 2 Ballistic Cannon 2 | . 2 . . Launcher 3 | . 2 . 1 Special Weapon 2 | . 2 . . Impact Weapon 2 | . . . 2 Slashing Weapon . | . . . . Piercing Weapon . | . . . . Special Melee Weapon . | . . . . Unidentified Prototypes 1 | . . . 1 Parts Lost 6 | . . 3 3 Power 1 | . . 1 . Propulsion 3 | . . 1 2 Utility . | . . . . Weapon 2 | . . 1 1 Highest Loss Streak 3 | . . 3 2 To Critical Strikes . | . . . . Average Backups 12 | 2 11 13 12 Power . | . . . . Propulsion . | . 1 . . Utility 6 | . 4 6 6 Weapon 4 | 1 4 4 4 Tool/Special . | . . . . Unused Backups 5 | 1 1 . 3 Power 1 | 1 . . . Propulsion . | . . . . Utility 2 | . . . 2 Weapon 1 | . 1 . . Tool/Special 1 | . . . 1 Average Slot Usage (%) 85 | . 95 99 82 Engine 13 | . 11 13 13 Treads 12 | . 28 28 7 Wheel 3 | . . . 4 Device 13 | . 14 14 13 Storage 13 | . 12 14 13 Energy Gun 3 | . . . 5 Energy Cannon 13 | . . 26 13 Ballistic Gun 1 | . 3 . . Ballistic Cannon 5 | . 19 1 3 Impact Weapon 3 | . . . 4 Peak Build Rating 20 | 6 8 10 20 Average Rating 10 | 3 7 9 11 On Entrance 5 | . 4 8 10 Naked Turns . | . . . . Heaviest Build 92 | 3 46 92 54 Greatest Support 40 | 20 40 40 40 Greatest Overweight (x) 17 | . 1 2 17 Average Overweight (x) 3 | . . . 6 Largest Inventory Capacity 25 | 5 20 25 20 Average Capacity 17 | 5 14 17 18 Most Carried 20 | 5 15 18 20 Average Carried 16 | 3 11 16 16 Final Capacity 20 | 5 15 20 15 Final Carried 18 | 5 15 18 14 Class Distribution -------------------- 92% | Mutant 7% | Scavenger-Mutant Dominant Class ---------------- Mutant | -10/Materials Mutant | -10/Mines Mutant | -10/Subcaves Resources | -11 -10 -10 -10 ----------- Run | Yrd Mat Min Sub Matter Collected 1601 | 368 594 195 444 Remotely . | . . . . Salvage Created 1538 | 175 676 244 443 Parts 118 | 13 52 19 34 Haulers Intercepted 1 | . 1 . . Recyclers Shooed 2 | 1 1 . . Parts Field Recycled . | . . . . Retrieved Matter . | . . . . Parts Self-Destructed 13 | . . . 13 Prevented . | . . . . Kills | -11 -10 -10 -10 ------- Run | Yrd Mat Min Sub Combat Hostiles Destroyed 38 | . 18 4 16 Guns 2 | . . . 2 Cannons 21 | . 14 4 3 AOE 14 | . 4 . 10 Classes Destroyed 12 | 2 7 . 3 Worker 9 | . 8 1 . Builder 1 | . 1 . . Tunneler 11 | 5 2 4 . Hauler 1 | . 1 . . Recycler 2 | 1 1 . . Operator 1 | . 1 . . Watcher 3 | . 3 . . Swarmer 19 | . 9 . 10 Grunt 13 | . 9 4 . Sentry 1 | . . . 1 Artisan 2 | . . . 2 Subdweller 5 | . . . 5 Best Kill Streak 8 | 2 8 2 5 Combat Bots Only 5 | . 4 2 5 Max Kills in Single Turn 3 | 1 3 1 3 Gunslinging . | . . . . Exploded 3 | . 3 . 3 Melee . | . . . . Uniques/NPCs Destroyed . | . . . . Combat | -11 -10 -10 -10 -------- Run | Yrd Mat Min Sub Hostile Shots Fired 157 | . 66 20 71 Missed 38 | . 22 4 12 Hits 119 | . 44 16 59 Projectile 119 | . 44 16 59 Damage Taken 1457 | . 420 200 837 Core 261 | . 42 32 187 Absorbed by Shields . | . . . . Core Remaining (%) 100 | 100 . . . Volleys Fired 179 | 45 59 24 51 Largest 2 | 1 2 2 2 Hottest 120 | 20 120 120 120 Shots Fired 289 | 45 109 47 88 Gun 78 | 45 7 . 26 Cannon 188 | . 93 47 48 Launcher 18 | . 4 . 14 Special 5 | . 5 . . Kinetic 165 | 45 98 18 4 Thermal 106 | . 7 29 70 Explosive 18 | . 4 . 14 Electromagnetic . | . . . . Robot Hit Streak 31 | 7 10 6 31 Robot Miss Streak 7 | 4 7 2 2 Penetration Max . | . . . . Secondary Targets . | . . . . Shots Hit Robots 160 | 24 57 24 55 Core Hits 90 | 7 40 11 32 Critical Kills 1 | . . . 1 Critical Parts Destroyed 1 | . 1 . . Critical Strikes 6 | . 4 1 1 Meltdown 1 | . . . 1 Destroy 1 | . 1 . . Blast 4 | . 3 1 . Melee Attacks 37 | . . . 37 Impact 37 | . . . 37 Slashing . | . . . . Piercing . | . . . . Sneak Attacks 1 | . . . 1 Combat Hostiles . | . . . . Follow-up Attacks . | . . . . Damage Inflicted 3881 | 302 1308 422 1849 Guns 593 | 302 55 . 236 Cannons 1976 | . 975 422 579 Explosions 1127 | . 278 . 849 Melee 185 | . . . 185 Ramming . | . . . . Kinetic 1456 | 302 1013 124 17 Thermal 1113 | . 17 298 798 Explosive 1127 | . 278 . 849 Electromagnetic . | . . . . Impact 185 | . . . 185 Slashing . | . . . . Piercing . | . . . . Highest Corruption . | . . . . Average Corruption . | . . . . Corruption Purged . | . . . . Corruption Blocked . | . . . . Overload Shots . | . . . . Overflow Damage 100 | . 32 . 68 Projectiles 21 | . 21 . . Explosions 28 | . 11 . 17 Melee 51 | . . . 51 Knockbacks 14 | . 11 2 1 Impact 1 | . . . 1 Kinetic 10 | . 9 1 . Secondary 3 | . 2 1 . Self-Inflicted Damage 56 | . 4 . 52 Shots 3 | . 1 . 2 Rammed . | . . . . Targets Rammed . | . . . . Kicked . | . . . . Crushed . | . . . . Highest Temperature 272 | . 60 272 1 Average Temperature 76 | . 16 96 1 Received Heat Transfer 267 | . 102 114 51 Siege Activations . | . . . . Martial Activations . | . . . . Shielding Activations . | . . . . Robots Disrupted . | . . . . Combat Hostiles . | . . . . Robots Corrupted 1 | . . . 1 Combat Hostiles . | . . . . Parts Fried . | . . . . Impact Corruptions 3 | . . . 3 Robots Melted 1 | . . . 1 Combat Hostiles 1 | . . . 1 Parts Melted 4 | . . 1 3 Heat Transferred 2125 | . 37 629 1459 Parts Sabotaged . | . . . . Parts Stolen . | . . . . Parts Stripped . | . . . . Power Chain Reactions . | . . . . Alert | -11 -10 -10 -10 ------- Run | Yrd Mat Min Sub Maximum Alert Level 1 | . 1 . . Low Security (%) 90 | 100 82 100 . Level 1 9 | . 17 . . Level 2 . | . . . . Level 3 . | . . . . Level 4 . | . . . . Level 5 . | . . . . High Security . | . . . . Max Security . | . . . . Peak Influence 338 | 10 338 179 . Initial 129 | . . 129 . Average 58 | 1 81 35 . Influence Increases 1318 | 30 683 125 480 Destroy 0b10 Robot/C 660 | . 360 80 220 Destroy 0b10 Robot/NC 140 | 30 85 25 . Destroy Leader 128 | . 88 20 20 Successful Hack 25 | . 25 . . Select Force Hacks 30 | . 30 . . Destroy Structure 35 | . 35 . . Lose Combat Pursuer 300 | . 60 . 240 Influence Decreases 1318 | 30 351 457 480 Entered New Map 203 | . . 203 . Time Decay 1085 | 30 351 224 480 Lost Part 30 | . . 30 . Squads Dispatched 5 | . 5 . . Investigation 4 | . 4 . . Extermination . | . . . . Reinforcement 1 | . 1 . . Assault . | . . . . Garrison . | . . . . Intercept . | . . . . Searches Triggered . | . . . . Construction Impeded . | . . . . Haulers Reinforced . | . . . . Active Scanning Responses . | . . . . Cargo Convoy Interrupts . | . . . . Stealth | -11 -10 -10 -10 --------- Run | Yrd Mat Min Sub Distress Signals 1 | . 1 . . Communications Jammed . | . . . . Distress Signals . | . . . . Times Spotted 54 | . 28 4 22 Peak Tracking Total 6 | . 5 2 6 Tactical Retreats 6 | . 2 . 4 Traps | -11 -10 -10 -10 ------- Run | Yrd Mat Min Sub Traps Triggered 5 | . 5 . . Indirectly . | . . . . Trap Hack Attempts . | . . . . Triggered . | . . . . Disarmed . | . . . . Reprogrammed . | . . . . Reused 3 | . . . 3 Traps Extracted . | . . . . Installed 4 | . . . 4 Triggered . | . . . . Most Traps Carried 4 | . . 4 4 Machines | -11 -10 -10 -10 ---------- Run | Yrd Mat Min Sub Machines Disabled . | . . . . Max in Single Turn . | . . . . Machines Repaired . | . . . . Machines Dismantled . | . . . . Machines Sabotaged . | . . . . Overloaded Fab Kills . | . . . . Hacking | -11 -10 -10 -10 --------- Run | Yrd Mat Min Sub Machines Accessed 8 | . 7 1 . Terminals 6 | . 6 . . Fabricators . | . . . . Repair Stations . | . . . . Recycling Units 1 | . 1 . . Scanalyzers . | . . . . Garrison Access . | . . . . Total Hacks 16 | . 15 1 . Successful 10 | . 9 1 . Failed 6 | . 6 . . Catastrophic 2 | . 2 . . Database Lockouts . | . . . . Manual 13 | . 13 . . Terminals 14 | . 14 . . Fabricators . | . . . . Repair Stations . | . . . . Recycling Units 1 | . 1 . . Scanalyzers . | . . . . Garrison Access . | . . . . Terminal Hacks 3 | . 2 1 . Robot Analysis 1 | . 1 . . Prototype ID Bank 1 | . 1 . . Open Door 1 | . . 1 . Fabricator Hacks . | . . . . Repair Station Hacks . | . . . . Recycling Unit Hacks . | . . . . Scanalyzer . | . . . . Garrison Access Hacks . | . . . . Unauthorized Hacks 7 | . 7 . . Terminals 6 | . 6 . . Botnet 1 | . 1 . . Skim 5 | . 5 . . Fabricators . | . . . . Repair Stations . | . . . . Recycling Units 1 | . 1 . . Tunnel 1 | . 1 . . Scanalyzers . | . . . . Garrison Access . | . . . . Data Cores Recovered 1 | . 1 . . Used . | . . . . Hacking Detections 6 | . 6 . . Full Trace Events . | . . . . Feedback Events . | . . . . Feedback Blocked . | . . . . Robot Schematics Acquired . | . . . . Robots Built . | . . . . Authchips . | . . . . Time . | . . . . Total Robot Build Rating . | . . . . Part Schematics Acquired . | . . . . Parts Built . | . . . . Authchips . | . . . . Time . | . . . . Total Part Build Rating . | . . . . Parts Repaired . | . . . . Time . | . . . . Parts Recycled . | . . . . Recycled Matter . | . . . . Retrieved Matter . | . . . . Retrieved Components . | . . . . Parts Scanalyzed . | . . . . Part Schematics Acquired . | . . . . Parts Damaged . | . . . . Bothacking | -11 -10 -10 -10 ------------ Run | Yrd Mat Min Sub Used RIF Installer . | . . . . Robots Hacked . | . . . . Non-combat . | . . . . Combat . | . . . . Robot Hacks Applied . | . . . . Relay Couplers Released . | . . . . Fabnet Peak Effective % . | . . . . Robots Rewired . | . . . . Allies Hacked . | . . . . Hacks Repelled . | . . . . Allies | -11 -10 -10 -10 -------- Run | Yrd Mat Min Sub Total Allies . | . . . . Largest Group . | . . . . Highest-Rated Group . | . . . . Highest-Rated Ally . | . . . . Total Orders . | . . . . Ally Attacks . | . . . . Total Damage . | . . . . Kills . | . . . . Allies Corrupted . | . . . . Allies Melted . | . . . . Intel | -11 -10 -10 -10 ------- Run | Yrd Mat Min Sub Active Infowar (turns) 11693 | 24 1596 1224 8849 Terrain 92 | . . . 92 Structural 2396 | . . . 2396 Seismic 9205 | 24 1596 1224 6361 Robot Analysis Total 1 | . 1 . . Derelict Logs Recovered 5 | . . 3 2 Drone Launches . | . . . . Drone Recoveries . | . . . . Exploration | -11 -10 -10 -10 ------------- Run | Yrd Mat Min Sub Turns Passed 12092 | 151 1596 1224 9121 Spaces Moved 3465 | 81 882 545 1957 Core 1025 | 80 197 . 748 Treads 2277 | 1 685 545 1046 Legs . | . . . . Wheels 163 | . . . 163 Hover . | . . . . Flight . | . . . . Fastest Speed 50 | 50 50 160 130 Average Speed 317 | 51 138 202 441 Slowest Speed 900 | 160 240 320 900 Overloaded Moves . | . . . . Propulsion Burnouts . | . . . . Robots Hopped . | . . . . Potential Cave-ins . | . . . . Cave-ins Triggered . | . . . . Exploration Rate (%) 69 | 5 97 90 87 Regions Visited 3 Branch Regions 2 Pre-discovered Areas 3 | . 1 1 1 Known Exits Taken 1 | . 1 . . Unknown Exits Taken 2 | 1 . 1 . Scrap Searched 6 | . . 2 4 Spaces Dug 16 | . 4 . 12 Terrain Destroyed 118 | . 35 . 83 Melee 12 | . . . 12 Projectile 5 | . 5 . . AOE 101 | . 30 . 71 Terrain Rammed . | . . . . Walls Destroyed . | . . . . Machines Disabled . | . . . . Actions | -11 -10 -10 -10 --------- Run | Yrd Mat Min Sub Total 4195 | 144 1131 616 2304 Wait 347 | 3 149 28 167 Move 3462 | 80 881 544 1957 Hop . | . . . . Pick Up 60 | 7 17 7 29 Fast Attach 14 | 4 5 . 5 Attach 15 | 2 3 3 7 Detach 5 | 1 1 . 3 Swap 42 | . 10 7 25 Drop 28 | 2 6 3 17 Fire 179 | 45 59 24 51 Melee 37 | . . . 37 Ram . | . . . . Kick . | . . . . Crush . | . . . . Escape Stasis . | . . . . Rewire . | . . . . Trap 4 | . . . 4 Miscellaneous 2 | . . . 2 Route ------- -11/Scrapyard -10/Materials (discovered 5 exits: *Mat x3 / *Min / [*Sub]) -10/Mines (discovered 2 exits: *Mat / [*Sub]) -10/Subcaves (discovered 3 exits: *Mat x2 / *Rec) History --------- Turn | Location | Event 10 | -11/Scrapyard | Discovered new exit (range 16) 152 | -11/Scrapyard | Entered Materials 276 | -10/Materials | Discovered new exit (range 8) 321 | -10/Materials | Build established: Mutant 919 | -10/Materials | Discovered new exit (range 8) 1130 | -10/Materials | Discovered new exit (range 16) 1275 | -10/Materials | Learned location of 2 exits from Subcaves 1412 | -10/Materials | Identified exit to Mines 1435 | -10/Materials | Learned location of 2 exits from Subcaves 1466 | -10/Materials | Identified exit to Materials 1506 | -10/Materials | Learned location of 2 exits from Subcaves 1748 | -10/Materials | Entered Mines 1823 | -10/Mines | Lost 3 parts (1p1n1w) 1824 | -10/Mines | Discovered new exit (range 6) 1872 | -10/Mines | Received a Rocket Launcher from a helpful Derelict 1957 | -10/Mines | Discovered exit to Materials (range 5) 2032 | -10/Mines | Found the Drone Emporium 2040 | -10/Mines | Found Prototype Device 2126 | -10/Mines | Learned location of 2 exits from Materials 2128 | -10/Mines | Learned Materials stockpile data 2242 | -10/Mines | Found a hidden stash of uninstalled traps 2461 | -10/Mines | Deemed a non-threat by the Exiles lab entrance 2972 | -10/Mines | Entered Subcaves 2973 | -10/Subcaves | Identified exit to Materials 2973 | -10/Subcaves | Identified exit to Recycling 2987 | -10/Subcaves | Learned Materials emergency access door positions 3036 | -10/Subcaves | Learned location of Zion (-6) 3036 | -10/Subcaves | Met a Zionite searching for "candidates" 3623 | -10/Subcaves | A swath of the cavern ceiling suddenly collapsed 3825 | -10/Subcaves | Core integrity fell below 50% 6123 | -10/Subcaves | Core integrity fell below 20% 7668 | -10/Subcaves | A swath of the cavern ceiling suddenly collapsed 7851 | -10/Subcaves | Shifting Twisted Machinery released Flamer 7904 | -10/Subcaves | Shifting Twisted Machinery released Scrap Shield 9558 | -10/Subcaves | Learned Materials security intel 9817 | -10/Subcaves | Build established: Scavenger-Mutant 10119 | -10/Subcaves | Identified Bomb Drone Bay 10840 | -10/Subcaves | Build established: Mutant 12093 | -10/Subcaves | Destroyed by O2-7Y9(R) with Subdweller Machine Gun Last Messages --------------- 11686_ Dropped Lrg. Storage Unit. 11690_ Subatomizers dissect the Sub. Laser. 11692_ Scrap Shield Fragment affixed to Scrap Shield (+40). 11698_ Scrap Shield Fragment affixed to Scrap Shield (+21). 11702_ Subatomizers dissect the Sub. Laser. 11713_ Acquired Lrg. Storage Unit. 11716_ Subatomizers dissect the Sub. Laser, destroying it. 11720_ Acquired Shrapnel Trap. 11727_ Acquired Sub. Machine Gun. 11730_ Subatomizers dissect the Hcp. Storage Unit. 11733_ Acquired Structural Scanner. 11740_ Acquired Huge Storage Unit. 11742_ Subatomizers dissect the Hcp. Storage Unit. 11746_ Acquired Hcp. Storage Unit. 11753_ Acquired Seismic Detector. 11754_ Subatomizers dissect the Rocket Launcher. 11759_ Acquired ECM Suite. 11766_ Acquired Rocket Launcher. 11772_ Acquired Scrap Shield Fragment. 11779_ Acquired Datajack. Map ----- +----------------------------------------------------+ | ????????????????????????????????????????????????? | | ????????????????????????????????????????????????? | | ????????????????????????????????????????????????? | | ????????????????????????????????????????????????? | | ????????????????????????????????????????????????? | | ????????????????????????????????????????????????? | | ????????????????????????????????????????????????? | | ????????????????????????????????????????????????? | | ????????????????????????????????????????????????? | | ???????????????????????###? ????????????????????? | | ??????????????????????? ### ???????????????????? | | ??????????????????????? ## ???????????????????? | | ??????????????????????? ???????????????????? | | ??????????????????????? ???????????????????? | | ??????????????????????? ????????????????????? | | ??????????????## ??????? ????????????????????? | | ??????????????###??????? #?#####?????????????? | | ??????????????## ?????# #########????????????? | | ??????????????### ????### #### ###????????????? | | ?????????????### ??#### ##????????????? | | ?????????????### &#### ###????????????? | | ?????????????## &%&## ##?????????????? | | ?????????????### R ##?????????????? | | ??????????????###? ###?????????????? | | ??????????????????? ### ###?????????????? | | ?????????????############@ ###?????????????? | | ????????############# ## # ###????????????? | | ?###????####### #### ## # ##????????????? | | ######??## ### ### ##????????????? | | # # #??## ## ### ###????????????? | | ##??##### ########????????????? | | ##????### #######?????????????? | | # ##????### ###?????????????????? | | ## ##????## ## ##?????????????????? | | # ##????## #### ###?????????????????? | | # ##????## ### #########???????????????? | | ## ###???## ###########??????????????? | | ###???## ###### ###??????????????? | | ########## ####### ##??????????????? | | ############ ######## ##??????????????? | | #### ####### ## ### ##??????????????? | | ### ### ### ###?????????????? | | #### ## #### ###?????????????? | | ##### ## ######## ##?????????????? | | ###### ######?## ##?????????????? | | ####### ######### ##?????????????? | | # # # ########## ##?????????????? | | ### ####?????????????? | | #####?????????????? | | ## ## ### ######????????????? | +----------------------------------------------------+ Best States ------------- Heat Dissipation 25 Energy Generation 10 Energy Capacity 250 Matter Stores 300 Matter Capacity 300 Sight Range 16 Terrain Scan Range 16 Terrain Scan Density 10 Armor Coverage 800 Evasion (%) 50 Recoil Reduction 2 Item Schematics ----------------- None Robot Schematics ------------------ None Fabricated ------------ Nothing Repaired ---------- Nothing Alien Tech Used ----------------- None Achievements -------------- None Challenges ------------ None Game ------ Seed ConcussiveBombardmentReplica Manual? 0 Play Time 00:34:26 Cumulative 316.2 hours Start 2025.06.30 @ 20:07:45 End 2025.06.30 @ 20:41:25 Sessions 1 Manual Loads 0 Difficulty Rogue Special Mode None Game No. 162 Rogue 162 Adventurer 0 Explorer 0 Win Type - Total 1 Types 0/0/0/0/1/0/0/0/0/0 Lore% 79 Gallery% 77 Achievement% 66 Wizard Run 0 Options --------- Layout 0 ASCII 0 Keyboard 0 Movement Mouse Keybinds 0 Fullscreen 1 Font 24/Smallcaps Map View 183x50 Zoom Use 0% Tactical HUD 1 Map Filters NONE Filters NONE Steam 0 RUN: 0aff8b43-165d-4f05-89d4-b456c2308a0e